fUSD/lending_fUSD_20250818
["ID","MTS","AMOUNT","RATE_DAILY","PERIOD"]
[380065093,1755526942397,-860.03,0.00030136,120]
[380065094,1755526942442,-860.03,0.00030136,120]
[380065095,1755526942485,-1299.8,0.00030136,120]
[380065096,1755526942528,-860.03,0.00030136,120]
[380065097,1755526942570,-860.03,0.00030136,120]
[380065098,1755526942612,-860.03,0.00030136,120]
[380065099,1755526942654,-860.03,0.00030136,120]
[380065100,1755526942696,-400.0,0.00030136,120]
[380065101,1755526942738,-860.03,0.00030136,120]
[380065102,1755526942779,-860.03,0.00030136,120]
[380065103,1755526942821,-860.03,0.00030136,120]
[380065104,1755526942862,-860.03,0.00030136,120]
[380065105,1755526942903,-860.03,0.00030136,120]
[380065106,1755526942944,-860.13960916,0.00030136,120]
[380065107,1755526942985,-928.01,0.00030136,120]
[380065108,1755526943028,-400.0,0.00030136,120]
[380065109,1755526943081,-400.0,0.00030136,120]
[380065110,1755526943133,-431.93,0.00030136,120]
[380065111,1755526943177,-579.29,0.00030136,120]
[380065112,1755526943221,-400.0,0.00030136,120]
[380065113,1755526943268,-400.0,0.00030136,120]
[380065114,1755526943312,-2931.23,0.00030136,120]
[380065115,1755526943358,-400.0,0.00030136,120]
[380065116,1755526943420,-400.0,0.00030136,120]
[380065117,1755526943464,-400.0,0.00030136,120]
[380065118,1755526943508,-400.0,0.00030136,120]
[380065119,1755526943552,-808.01,0.00030136,120]
[380065120,1755526943596,-400.0,0.00030136,120]
[380065121,1755526943639,-400.0,0.00030136,120]
[380065122,1755526943695,-400.0,0.00030136,120]
[380065123,1755526943738,-400.0,0.00030136,120]
[380065124,1755526943781,-1281.63,0.00030136,120]
[380065125,1755526943825,-400.0,0.00030136,120]
[380065126,1755526943874,-638.0,0.00030136,120]
[380065127,1755526943919,-400.0,0.00030136,120]
[380065128,1755526943966,-400.0,0.00030136,120]
[380065129,1755526944011,-728.39,0.00030136,120]
[380065130,1755526944058,-2977.0,0.00030136,120]
[380065131,1755526944101,-611.25,0.00030136,120]
[380065132,1755526944150,-400.0,0.00030136,120]
[380065133,1755526944196,-400.0,0.00030136,120]
[380065134,1755526944241,-400.0,0.00030136,120]
[380065135,1755526944288,-1845.59,0.00030136,120]
[380065136,1755526944333,-2380.06,0.00030136,120]
[380065137,1755526944376,-818.46,0.00030136,120]
[380065138,1755526944420,-400.0,0.00030136,120]
[380065139,1755526944469,-858.15,0.00030136,120]
[380065140,1755526944512,-837.34,0.00030136,120]
[380065141,1755526944555,-400.0,0.00030136,120]
[380065142,1755526944600,-1053.59,0.00030136,120]
[380065143,1755526944644,-529.69,0.00030136,120]
[380065144,1755526944690,-521.04,0.00030136,120]
[380065145,1755526944733,-500.0,0.00030136,120]
[380065146,1755526944777,-500.0,0.00030136,120]
[380065147,1755526944821,-500.0,0.00030136,120]
[380065148,1755526944864,-500.0,0.00030136,120]
[380065149,1755526944909,-500.0,0.00030136,120]
[380065150,1755526944959,-500.0,0.00030136,120]
[380065151,1755526945011,-500.0,0.00030136,120]
[380065152,1755526945061,-500.0,0.00030136,120]
[380065153,1755526945104,-283.44097999,0.00030136,120]
[380065154,1755526945145,-400.0,0.00030136,120]
[380065155,1755526945187,-400.0,0.00030136,120]
[380065156,1755526945231,-400.0,0.00030136,120]
[380065157,1755526945273,-400.0,0.00030136,120]
[380065158,1755526945324,-400.0,0.00030136,120]
[380065159,1755526945372,-400.0,0.00030136,120]
[380065160,1755526945414,-400.0,0.00030136,120]
[380065161,1755526945455,-2249.69,0.00030136,120]
[380065162,1755526945496,-481.29,0.00030136,120]
[380065163,1755526945538,-400.0,0.00030136,120]
[380065164,1755526945582,-400.0,0.00030136,120]
[380065165,1755526945624,-215.19178722,0.00030136,120]
[380065166,1755526945667,-2495.66,0.00030136,120]
[380065167,1755526945738,-1016.24,0.00030136,120]
[380065168,1755526945786,-401.16780313,0.00030136,120]
[380065169,1755526945828,-400.0,0.00030136,120]
[380065170,1755526945870,-443.27842107,0.00030136,120]
[380065171,1755526945912,-400.0,0.00030136,120]
[380065172,1755526945963,-715.22,0.00030136,120]
[380065173,1755526946013,-1616.86,0.00030136,120]
[380065174,1755526946063,-400.0,0.00030136,120]
[380065175,1755526946113,-431.58,0.00030136,120]
[380065176,1755526946182,-400.0,0.00030136,120]
[380065177,1755526946243,-400.0,0.00030136,120]
[380065178,1755526946302,-400.0,0.00030136,120]
[380065179,1755526946362,-400.0,0.00030136,120]
[380065180,1755526946423,-400.0,0.00030136,120]
[380065181,1755526946486,-400.0,0.00030136,120]
[380065182,1755526946544,-600.2,0.00030136,120]
[380065183,1755526946611,-195.73220608,0.00030136,120]
[380065184,1755526946661,-400.0,0.00030136,120]
[380065185,1755526946714,-793.75,0.00030136,120]
[380065186,1755526946774,-409.36,0.00030136,120]
[380065187,1755526946825,-400.0,0.00030136,120]
[380065188,1755526946887,-400.0,0.00030136,120]
[380065189,1755526946949,-400.0,0.00030136,120]
[380065190,1755526947017,-400.0,0.00030136,120]
[380065191,1755526947121,-775.78,0.00030136,120]
[380065192,1755526947183,-501.73,0.00030136,120]
[380065193,1755526947240,-400.0,0.00030136,120]
[380065194,1755526947297,-400.0,0.00030136,120]
[380065195,1755526947356,-1550.27,0.00030136,120]
[380065196,1755526947411,-1545.72,0.00030136,120]
[380065197,1755526947467,-400.0,0.00030136,120]
[380065198,1755526947520,-400.0,0.00030136,120]
[380065199,1755526947576,-537.5,0.00030136,120]
[380065200,1755526947629,-400.0,0.00030136,120]
[380065201,1755526947683,-1877.93,0.00030136,120]
[380065202,1755526947742,-500.0,0.00030136,120]
[380065203,1755526947801,-500.0,0.00030136,120]
[380065204,1755526947861,-500.0,0.00030136,120]
[380065205,1755526947936,-500.0,0.00030136,120]
[380065206,1755526948006,-500.0,0.00030136,120]
[380065207,1755526948079,-500.0,0.00030136,120]
[380065208,1755526948138,-500.0,0.00030136,120]
[380065209,1755526948203,-500.0,0.00030136,120]
[380065210,1755526948261,-1007.79,0.00030136,120]
[380065211,1755526948321,-500.0,0.00030136,120]
[380065212,1755526948379,-500.0,0.00030136,120]
[380065213,1755526950201,-714.3,0.00030136,120]
[380065214,1755526950246,-500.0,0.00030136,120]
[380065215,1755526950294,-500.0,0.00030136,120]
[380065216,1755526950341,-500.0,0.00030136,120]
[380065217,1755526950381,-500.0,0.00030136,120]
[380065218,1755526950423,-500.0,0.00030136,120]
[380065219,1755526950462,-500.0,0.00030136,120]
[380065220,1755526950501,-500.0,0.00030136,120]
[380065221,1755526950541,-500.0,0.00030136,120]
[380065222,1755526950583,-500.0,0.00030136,120]
[380065223,1755526950625,-400.0,0.00030136,120]
[380065224,1755526950667,-500.0,0.00030136,120]
[380065225,1755526950708,-500.0,0.00030136,120]
[380065226,1755526950750,-500.0,0.00030136,120]
[380065227,1755526950793,-227.46652439,0.00030136,120]
[380065228,1755526950835,-1157.11,0.00030136,120]
[380065229,1755526950877,-400.0,0.00030136,120]
[380065230,1755526950920,-400.0,0.00030136,120]
[380065231,1755526950969,-1613.54,0.00030136,120]
[380065232,1755526951012,-400.0,0.00030136,120]
[380065233,1755526951061,-567.94,0.00030136,120]
[380065234,1755526951106,-400.0,0.00030136,120]
[380065235,1755526951150,-725.74,0.00030136,120]
[380065236,1755526951194,-400.0,0.00030136,120]
[380065237,1755526951238,-484.8,0.00030136,120]
[380065238,1755526951284,-400.0,0.00030136,120]
[380065239,1755526951333,-400.0,0.00030136,120]
[380065240,1755526951379,-1457.34,0.00030136,120]
[380065241,1755526951425,-400.0,0.00030136,120]
[380065242,1755526951472,-400.0,0.00030136,120]
[380065243,1755526951518,-935.87,0.00030136,120]
[380065244,1755526951563,-400.0,0.00030136,120]
[380065245,1755526951607,-934.74,0.00030136,120]
[380065246,1755526951650,-400.0,0.00030136,120]
[380065247,1755526951692,-703.02,0.00030136,120]
[380065248,1755526951734,-944.01,0.00030136,120]
[380065249,1755526951777,-400.0,0.00030136,120]
[380065250,1755526951821,-2930.7,0.00030136,120]
[380065251,1755526951863,-400.0,0.00030136,120]
[380065252,1755526951905,-847.66,0.00030136,120]
[380065253,1755526951948,-400.0,0.00030136,120]
[380065254,1755526951990,-400.0,0.00030136,120]
[380065255,1755526952032,-400.0,0.00030136,120]
[380065256,1755526952078,-4524.18,0.00030136,120]
[380065257,1755526952122,-400.0,0.00030136,120]
[380065258,1755526952174,-1174.68,0.00030136,120]
[380065259,1755526952218,-400.0,0.00030136,120]
[380065260,1755526952261,-861.4,0.00030136,120]
[380065261,1755526952306,-400.0,0.00030136,120]
[380065262,1755526952350,-400.0,0.00030136,120]
[380065263,1755526952394,-1281.2,0.00030136,120]
[380065264,1755526952435,-400.0,0.00030136,120]
[380065265,1755526952479,-400.0,0.00030136,120]
[380065266,1755526952521,-978.23,0.00030136,120]
[380065267,1755526952563,-540.76,0.00030136,120]
[380065268,1755526952606,-400.0,0.00030136,120]
[380065269,1755526952648,-400.0,0.00030136,120]
[380065270,1755526952691,-500.0,0.00030136,120]
[380065271,1755526952740,-500.0,0.00030136,120]
[380065272,1755526952789,-500.0,0.00030136,120]
[380065273,1755526952833,-500.0,0.00030136,120]
[380065274,1755526952874,-500.0,0.00030136,120]
[380065275,1755526952918,-400.0,0.00030136,120]
[380065276,1755526952963,-500.0,0.00030136,120]
[380065277,1755526953005,-500.0,0.00030136,120]
[380065278,1755526953050,-500.0,0.00030136,120]
[380065279,1755526953094,-500.0,0.00030136,120]
[380065280,1755526953136,-500.0,0.00030136,120]
[380065281,1755526953183,-500.0,0.00030136,120]
[380065282,1755526953230,-500.0,0.00030136,120]
[380065283,1755526953275,-500.0,0.00030136,120]
[380065284,1755526953319,-500.0,0.00030136,120]
[380065285,1755526953366,-1260.29,0.00030136,120]
[380065286,1755526953413,-500.0,0.00030136,120]
[380065287,1755526953458,-1260.29,0.00030136,120]
[380065288,1755526953500,-505.15312736,0.00030136,120]
[380065289,1755526953559,-461.3,0.00030136,120]
[380065290,1755526953633,-1260.29,0.00030136,120]
[380065291,1755526953703,-1260.29,0.00030136,120]
[380065292,1755526953777,-400.0,0.00030136,120]
[380065293,1755526953867,-1260.29,0.00030136,120]
[380065294,1755526953918,-1624.7,0.00030136,120]
[380065295,1755526953969,-400.0,0.00030136,120]
[380065296,1755526954022,-1624.7,0.00030136,120]
[380065297,1755526954079,-1260.29,0.00030136,120]
[380065298,1755526954131,-1260.29,0.00030136,120]
[380065299,1755526954178,-1624.7,0.00030136,120]
[380065300,1755526954223,-1260.29,0.00030136,120]
[380065301,1755526954270,-1260.29,0.00030136,120]
[380065302,1755526954315,-1624.7,0.00030136,120]
[380065303,1755526954357,-856.54,0.00030136,120]
[380065304,1755526954400,-1260.29,0.00030136,120]
[380065305,1755526954777,-1624.7,0.00030136,120]
[380065306,1755526954820,-1624.7,0.00030136,120]
[380065307,1755526954866,-1624.7,0.00030136,120]
[380065308,1755526954908,-1260.29,0.00030136,120]
[380065309,1755526954950,-1624.7,0.00030136,120]
[380065310,1755526954992,-1260.29,0.00030136,120]
[380065311,1755526955035,-1624.7,0.00030136,120]
[380065312,1755526955078,-1260.29,0.00030136,120]
[380065313,1755526955120,-1624.7,0.00030136,120]
[380065314,1755526955163,-1260.29,0.00030136,120]
[380065315,1755526955205,-1624.7,0.00030136,120]
[380065316,1755526955247,-1260.29,0.00030136,120]
[380065317,1755526955292,-1624.7,0.00030136,120]
[380065318,1755526955347,-1260.29,0.00030136,120]
[380065319,1755526955388,-1624.7,0.00030136,120]
[380065320,1755526955432,-1624.7,0.00030136,120]
[380065321,1755526955475,-1260.29,0.00030136,120]
[380065322,1755526955518,-1624.7,0.00030136,120]
[380065323,1755526955561,-1260.29,0.00030136,120]
[380065324,1755526955603,-1624.7,0.00030136,120]
[380065325,1755526955645,-1260.29,0.00030136,120]
[380065326,1755526955688,-1624.7,0.00030136,120]
[380065327,1755526955731,-2550.71,0.00030136,120]
[380065328,1755526955773,-1624.7,0.00030136,120]
[380065329,1755526955816,-1624.7,0.00030136,120]
[380065330,1755526955857,-1260.29,0.00030136,120]
[380065331,1755526955898,-445.89,0.00030136,120]
[380065332,1755526955940,-1624.7,0.00030136,120]
[380065333,1755526955981,-1260.29,0.00030136,120]
[380065334,1755526956022,-1624.7,0.00030136,120]
[380065335,1755526956063,-1260.29,0.00030136,120]
[380065336,1755526956107,-1624.7,0.00030136,120]
[380065337,1755526956151,-1260.29,0.00030136,120]
[380065338,1755526956194,-1624.7,0.00030136,120]
[380065339,1755526956246,-1260.44068071,0.00030136,120]
[380065340,1755526956325,-1624.81908931,0.00030136,120]
[380065341,1755526956404,-400.0,0.00030136,120]
[380065342,1755526956470,-500.0,0.00030136,120]
[380065343,1755526956540,-500.0,0.00030136,120]
[380065344,1755526956619,-500.0,0.00030136,120]
[380065345,1755526956662,-427.62,0.00030136,120]
[380065346,1755526956703,-500.0,0.00030136,120]
[380065347,1755526956747,-500.0,0.00030136,120]
[380065348,1755526956789,-400.0,0.00030136,120]
[380065349,1755526956831,-500.0,0.00030136,120]
[380065350,1755526956873,-500.0,0.00030136,120]
[380065351,1755526956916,-500.0,0.00030136,120]
[380065352,1755526956960,-400.0,0.00030136,120]
[380065353,1755526957002,-500.0,0.00030136,120]
[380065354,1755526957043,-500.0,0.00030136,120]
[380065355,1755526957087,-500.0,0.00030136,120]
[380065356,1755526957128,-500.0,0.00030136,120]
[380065357,1755526957169,-500.0,0.00030136,120]
[380065358,1755526957214,-500.0,0.00030136,120]
[380065359,1755526957256,-511.2508289,0.00030136,120]
[380065360,1755526957299,-744.44,0.00030136,120]
[380065361,1755526957341,-960.28,0.00030136,120]
[380065362,1755526957383,-960.28,0.00030136,120]
[380065363,1755526957424,-960.28,0.00030136,120]
[380065364,1755526957464,-960.28,0.00030136,120]
[380065365,1755526957504,-960.28,0.00030136,120]
[380065366,1755526957545,-415.89,0.00030136,120]
[380065367,1755526957589,-960.28,0.00030136,120]
[380065368,1755526957632,-960.28,0.00030136,120]
[380065369,1755526957676,-2442.15,0.00030136,120]
[380065370,1755526957718,-960.28,0.00030136,120]
[380065371,1755526957761,-960.28,0.00030136,120]
[380065372,1755526957803,-960.28,0.00030136,120]
[380065373,1755526957849,-960.28,0.00030136,120]
[380065374,1755526957894,-960.28,0.00030136,120]
[380065375,1755526957938,-2348.47,0.00030136,120]
[380065376,1755526957980,-400.0,0.00030136,120]
[380065377,1755526958024,-960.28,0.00030136,120]
[380065378,1755526958068,-960.28,0.00030136,120]
[380065379,1755526958111,-960.28,0.00030136,120]
[380065380,1755526958154,-400.0,0.00030136,120]
[380065381,1755526958196,-960.28,0.00030136,120]
[380065382,1755526958237,-951.88,0.00030136,120]
[380065383,1755526958278,-960.28,0.00030136,120]
[380065384,1755526958320,-960.28,0.00030136,120]
[380065385,1755526958364,-960.28,0.00030136,120]
[380065386,1755526958405,-960.28,0.00030136,120]
[380065387,1755526958447,-960.28,0.00030136,120]
[380065388,1755526958488,-960.28,0.00030136,120]
[380065389,1755526958528,-960.28,0.00030136,120]
[380065390,1755526958569,-960.40388242,0.00030136,120]
[380065391,1755526958610,-400.0,0.00030136,120]
[380065392,1755526958650,-400.0,0.00030136,120]
[380065393,1755526958691,-448.55,0.00030136,120]
[380065394,1755526958732,-400.0,0.00030136,120]
[380065395,1755526958773,-464.04433464,0.00030136,120]
[380065396,1755526958815,-842.46,0.00030136,120]
[380065397,1755526958858,-818.21,0.00030136,120]
[380065398,1755526958901,-660.42,0.00030136,120]
[380065399,1755526958943,-534.9646742,0.00030136,120]
[380065400,1755526958986,-901.0,0.00030136,120]
[380065401,1755526959249,-1139.82,0.00030136,120]
[380065402,1755526959334,-400.0,0.00030136,120]
[380065403,1755526959380,-916.66,0.00030136,120]
[380065404,1755526959425,-458.784684,0.00030136,120]
[380065405,1755526959470,-3345.55,0.00030136,120]
[380065406,1755526959515,-400.0,0.00030136,120]
[380065407,1755526959559,-400.0,0.00030136,120]
[380065408,1755526959603,-400.0,0.00030136,120]
[380065409,1755526959647,-400.0,0.00030136,120]
[380065410,1755526959690,-400.0,0.00030136,120]
[380065411,1755526959734,-400.0,0.00030136,120]
[380065412,1755526959776,-1423.62,0.00030136,120]
[380065413,1755526959819,-826.15,0.00030136,120]
[380065414,1755526959862,-400.0,0.00030136,120]
[380065415,1755526959904,-682.05,0.00030136,120]
[380065416,1755526959948,-400.0,0.00030136,120]
[380065417,1755526959991,-1528.81,0.00030136,120]
[380065418,1755526960032,-400.0,0.00030136,120]
[380065419,1755526960082,-999.03,0.00030136,120]
[380065420,1755526960147,-431.44,0.00030136,120]
[380065421,1755526960215,-495.43,0.00030136,120]
[380065422,1755526960282,-2369.47,0.00030136,120]
[380065423,1755526960348,-1687.03,0.00030136,120]
[380065424,1755526960429,-400.0,0.00030136,120]
[380065425,1755526960472,-400.0,0.00030136,120]
[380065426,1755526960514,-2039.14,0.00030136,120]
[380065427,1755526960555,-884.63,0.00030136,120]
[380065428,1755526960597,-400.0,0.00030136,120]
[380065429,1755526960638,-675.74,0.00030136,120]
[380065430,1755526960680,-400.0,0.00030136,120]
[380065431,1755526960722,-1369.3,0.00030136,120]
[380065432,1755526960764,-465.21,0.00030136,120]
[380065433,1755526960807,-419.07,0.00030136,120]
[380065434,1755526960849,-391.90493787,0.00030136,120]
[380065435,1755526960891,-400.0,0.00030136,120]
[380065436,1755526960934,-400.0,0.00030136,120]
[380065437,1755526960974,-400.0,0.00030136,120]
[380065438,1755526961014,-1068.02,0.00030136,120]
[380065439,1755526961056,-400.0,0.00030136,120]
[380065440,1755526961099,-1294.96,0.00030136,120]
[380065441,1755526961141,-1533.3,0.00030136,120]
[380065442,1755526961182,-400.0,0.00030136,120]
[380065443,1755526961224,-473.8,0.00030136,120]
[380065444,1755526961268,-736.61,0.00030136,120]
[380065445,1755526961312,-713.76,0.00030136,120]
[380065446,1755526961355,-500.0,0.00030136,120]
[380065447,1755526961398,-500.0,0.00030136,120]
[380065448,1755526961439,-500.0,0.00030136,120]
[380065449,1755526961480,-400.0,0.00030136,120]
[380065450,1755526961523,-500.0,0.00030136,120]
[380065451,1755526961564,-1886.69,0.00030136,120]
[380065452,1755526961607,-500.0,0.00030136,120]
[380065453,1755526961648,-500.0,0.00030136,120]
[380065454,1755526961689,-500.0,0.00030136,120]
[380065455,1755526961731,-500.001154,0.00030136,120]
[380065456,1755526961771,-435.32,0.00030136,120]
[380065457,1755526961812,-400.0,0.00030136,120]
[380065458,1755526961853,-4126.15,0.00030136,120]
[380065459,1755526961895,-2457.04,0.00030136,120]
[380065460,1755526961937,-400.0,0.00030136,120]
[380065461,1755526961979,-1395.8,0.00030136,120]
[380065462,1755526962021,-2346.41,0.00030136,120]
[380065463,1755526962068,-400.0,0.00030136,120]
[380065464,1755526962110,-400.0,0.00030136,120]
[380065465,1755526962151,-2837.19,0.00030136,120]
[380065466,1755526962194,-460.75,0.00030136,120]
[380065467,1755526962235,-400.0,0.00030136,120]
[380065468,1755526962276,-654.71,0.00030136,120]
[380065469,1755526962316,-400.0,0.00030136,120]
[380065470,1755526962359,-400.0,0.00030136,120]
[380065471,1755526962400,-1123.84,0.00030136,120]
[380065472,1755526962441,-400.0,0.00030136,120]
[380065473,1755526962481,-400.0,0.00030136,120]
[380065474,1755526962521,-900.16,0.00030136,120]
[380065475,1755526962768,-400.0,0.00030136,120]
[380065476,1755526962809,-749.4,0.00030136,120]
[380065477,1755526962862,-400.0,0.00030136,120]
[380065478,1755526962903,-400.0,0.00030136,120]
[380065479,1755526962946,-400.0,0.00030136,120]
[380065480,1755526962987,-400.0,0.00030136,120]
[380065481,1755526963029,-400.0,0.00030136,120]
[380065482,1755526963074,-611.53,0.00030136,120]
[380065483,1755526963119,-2072.58,0.00030136,120]
[380065484,1755526963163,-800.97,0.00030136,120]
[380065485,1755526963208,-2884.54,0.00030136,120]
[380065486,1755526963251,-400.0,0.00030136,120]
[380065487,1755526963293,-400.0,0.00030136,120]
[380065488,1755526963339,-846.46,0.00030136,120]
[380065489,1755526963383,-565.64,0.00030136,120]
[380065490,1755526963426,-1133.65,0.00030136,120]
[380065491,1755526963469,-649.52,0.00030136,120]
[380065492,1755526963511,-1047.95,0.00030136,120]
[380065493,1755526963559,-400.0,0.00030136,120]
[380065494,1755526963601,-3501.8,0.00030136,120]
[380065495,1755526963649,-400.0,0.00030136,120]
[380065496,1755526963692,-2208.99,0.00030136,120]
[380065497,1755526964139,-400.0,0.00030136,120]
[380065498,1755526964207,-2647.1,0.00030136,120]
[380065499,1755526964251,-400.0,0.00030136,120]
[380065500,1755526964295,-2482.18,0.00030136,120]
[380065501,1755526964338,-400.0,0.00030136,120]
[380065502,1755526964381,-400.0,0.00030136,120]
[380065503,1755526964424,-400.0,0.00030136,120]
[380065504,1755526964465,-1415.6,0.00030136,120]
[380065505,1755526964506,-400.0,0.00030136,120]
[380065506,1755526964547,-1061.44,0.00030136,120]
[380065507,1755526964589,-400.0,0.00030136,120]
[380065508,1755526964631,-400.0,0.00030136,120]
[380065509,1755526964675,-675.25,0.00030136,120]
[380065510,1755526964716,-2925.32,0.00030136,120]
[380065511,1755526964756,-403.92,0.00030136,120]
[380065512,1755526964798,-451.43,0.00030136,120]
[380065513,1755526964839,-321.64508037,0.00030136,120]
[380065514,1755526964881,-400.0,0.00030136,120]
[380065515,1755526964923,-1487.67,0.00030136,120]
[380065516,1755526964969,-400.0,0.00030136,120]
[380065517,1755526965017,-400.0,0.00030136,120]
[380065518,1755526965065,-1209.91,0.00030136,120]
[380065519,1755526965108,-516.3,0.00030136,120]
[380065520,1755526965152,-2509.57,0.00030136,120]
[380065521,1755526965197,-734.93,0.00030136,120]
[380065522,1755526965240,-2182.89,0.00030136,120]
[380065523,1755526965282,-4012.08,0.00030136,120]
[380065524,1755526965325,-400.0,0.00030136,120]
[380065525,1755526965368,-400.0,0.00030136,120]
[380065526,1755526965414,-3709.8,0.00030136,120]
[380065527,1755526965461,-1044.7,0.00030136,120]
[380065528,1755526965508,-654.58,0.00030136,120]
[380065529,1755526965558,-400.0,0.00030136,120]
[380065530,1755526965601,-400.0,0.00030136,120]
[380065531,1755526965642,-400.0,0.00030136,120]
[380065532,1755526965684,-4490.7,0.00030136,120]
[380065533,1755526965724,-400.0,0.00030136,120]
[380065534,1755526965765,-400.0,0.00030136,120]
[380065535,1755526965807,-400.0,0.00030136,120]
[380065536,1755526965849,-4669.48,0.00030136,120]
[380065537,1755526965892,-543.98,0.00030136,120]
[380065538,1755526965936,-400.0,0.00030136,120]
[380065539,1755526965980,-531.09,0.00030136,120]
[380065540,1755526966024,-557.45,0.00030136,120]
[380065541,1755526966079,-400.0,0.00030136,120]
[380065542,1755526966123,-400.0,0.00030136,120]
[380065543,1755526966169,-400.0,0.00030136,120]
[380065544,1755526966214,-751.57,0.00030136,120]
[380065545,1755526966258,-765.75,0.00030136,120]
[380065546,1755526966304,-500.0,0.00030136,120]
[380065547,1755526966350,-500.0,0.00030136,120]
[380065548,1755526966394,-452.83457538,0.00030136,120]
[380065549,1755526966439,-400.0,0.00030136,120]
[380065550,1755526966484,-1027.84,0.00030136,120]
[380065551,1755526966528,-3408.81,0.00030136,120]
[380065552,1755526966575,-1368.45,0.00030136,120]
[380065553,1755526966619,-1292.48,0.00030136,120]
[380065554,1755526966662,-400.0,0.00030136,120]
[380065555,1755526966706,-720.82,0.00030136,120]
[380065556,1755526966749,-400.0,0.00030136,120]
[380065557,1755526966793,-4535.96,0.00030136,120]
[380065558,1755526966839,-1281.64,0.00030136,120]
[380065559,1755526966882,-438.65696703,0.00030136,120]
[380065560,1755526966925,-2344.86,0.00030136,120]
[380065561,1755526966974,-400.0,0.00030136,120]
[380065562,1755526967017,-400.0,0.00030136,120]
[380065563,1755526967063,-400.0,0.00030136,120]
[380065564,1755526967108,-1148.91,0.00030136,120]
[380065565,1755526967151,-400.0,0.00030136,120]
[380065566,1755526967195,-400.0,0.00030136,120]
[380065567,1755526967239,-400.0,0.00030136,120]
[380065568,1755526967285,-3175.66,0.00030136,120]
[380065569,1755526967346,-2323.02,0.00030136,120]
[380065570,1755526967392,-2136.82,0.00030136,120]
[380065571,1755526967437,-700.56,0.00030136,120]
[380065572,1755526967481,-2208.99,0.00030136,120]
[380065573,1755526967526,-4605.33,0.00030136,120]
[380065574,1755526967571,-488.21,0.00030136,120]
[380065575,1755526967613,-400.0,0.00030136,120]
[380065576,1755526967656,-2167.6,0.00030136,120]
[380065577,1755526967699,-400.0,0.00030136,120]
[380065578,1755526967742,-400.0,0.00030136,120]
[380065579,1755526967785,-2163.28,0.00030136,120]
[380065580,1755526967828,-433.6,0.00030136,120]
[380065581,1755526967872,-835.19,0.00030136,120]
[380065582,1755526967915,-835.19,0.00030136,120]
[380065583,1755526967962,-400.0,0.00030136,120]
[380065584,1755526968009,-835.19,0.00030136,120]
[380065585,1755526968053,-400.0,0.00030136,120]
[380065586,1755526968098,-835.19,0.00030136,120]
[380065587,1755526968143,-835.19,0.00030136,120]
[380065588,1755526968187,-835.19,0.00030136,120]
[380065589,1755526968232,-835.19,0.00030136,120]
[380065590,1755526968277,-400.0,0.00030136,120]
[380065591,1755526968322,-835.19,0.00030136,120]
[380065592,1755526968368,-1896.19,0.00030136,120]